[Event "Titled Tuesday Blitz August 22 Late 2023"]
[White "Vafin, Ayrat"]
[Black "Ozen, Batuhan"]
[WhiteFideId "4146530"]
[BlackFideId "6345123"]
[WhiteElo "2499"]
[BlackElo "2381"]
[Result "1-0"]
[Round "9"]
[TimeControl "180+1"]
[Date "2023.08.22"]
[WhiteClock "0:00:14"]
[BlackClock "0:00:25"]
[Board "81"]

1. Nf3 {[%clk 0:03:00]}  c5 {[%clk 0:02:57]} 2. g3 {[%clk 0:03:01]}  Nf6 {[%clk 0:02:55]} 3. Bg2 {[%clk 0:03:01]}  g6 {[%clk 0:02:55]} 4. O-O {[%clk 0:03:01]}  Bg7 {[%clk 0:02:56]} 5. c4 {[%clk 0:03:01]}  d5 {[%clk 0:02:52]} 6. cxd5 {[%clk 0:02:59]}  Nxd5 {[%clk 0:02:53]} 7. Nc3 {[%clk 0:03:00]}  Nc6 {[%clk 0:02:45]} 8. a3 {[%clk 0:02:10]}  O-O {[%clk 0:02:40]} 9. Nxd5 {[%clk 0:02:06]}  Qxd5 {[%clk 0:02:41]} 10. d3 {[%clk 0:02:07]}  Rd8 {[%clk 0:02:21]} 11. Qc2 {[%clk 0:01:51]}  b6 {[%clk 0:02:01]} 12. Be3 {[%clk 0:01:37]}  Bb7 {[%clk 0:01:57]} 13. Rac1 {[%clk 0:01:34]}  Ne5 {[%clk 0:01:45]} 14. Bf4 {[%clk 0:01:16]}  Nc6 {[%clk 0:01:36]} 15. Be3 {[%clk 0:01:07]}  Rac8 {[%clk 0:01:31]} 16. Rfd1 {[%clk 0:01:05]}  h5 {[%clk 0:01:21]} 17. Qd2 {[%clk 0:00:59]}  Nd4 {[%clk 0:01:16]} 18. Bxd4 {[%clk 0:00:58]}  Bxd4 {[%clk 0:01:14]} 19. Nh4 {[%clk 0:00:46]}  Qd7 {[%clk 0:01:13]} 20. Bxb7 {[%clk 0:00:46]}  Qxb7 {[%clk 0:01:14]} 21. Nf3 {[%clk 0:00:47]}  Bf6 {[%clk 0:01:13]} 22. b3 {[%clk 0:00:37]}  Kg7 {[%clk 0:01:09]} 23. a4 {[%clk 0:00:36]}  h4 {[%clk 0:01:09]} 24. Rc4 {[%clk 0:00:35]}  hxg3 {[%clk 0:01:07]} 25. hxg3 {[%clk 0:00:36]}  Rh8 {[%clk 0:01:07]} 26. Kg2 {[%clk 0:00:37]}  e6 {[%clk 0:01:04]} 27. Rh1 {[%clk 0:00:36]}  Rxh1 {[%clk 0:01:04]} 28. Kxh1 {[%clk 0:00:37]}  Rh8+ {[%clk 0:01:03]} 29. Kg2 {[%clk 0:00:37]}  Qd5 {[%clk 0:01:03]} 30. g4 {[%clk 0:00:15]}  a6 {[%clk 0:00:55]} 31. Qf4 {[%clk 0:00:15]}  Be7 {[%clk 0:00:46]} 32. Qe5+ {[%clk 0:00:14]}  Bf6 {[%clk 0:00:41]} 33. Qxd5 {[%clk 0:00:11]}  exd5 {[%clk 0:00:42]} 34. Rc2 {[%clk 0:00:11]}  Re8 {[%clk 0:00:41]} 35. Ng1 {[%clk 0:00:10]}  Be7 {[%clk 0:00:40]} 36. Nf3 {[%clk 0:00:10]}  Bd6 {[%clk 0:00:40]} 37. e3 {[%clk 0:00:10]}  b5 {[%clk 0:00:38]} 38. axb5 {[%clk 0:00:10]}  axb5 {[%clk 0:00:39]} 39. Nd2 {[%clk 0:00:08]}  Ra8 {[%clk 0:00:38]} 40. e4 {[%clk 0:00:08]}  d4 {[%clk 0:00:37]} 41. e5 {[%clk 0:00:04]}  Be7 {[%clk 0:00:26]} 42. Kf3 {[%clk 0:00:05]}  f6 {[%clk 0:00:16]} 43. exf6+ {[%clk 0:00:04]}  Kxf6 {[%clk 0:00:16]} 44. Ke4 {[%clk 0:00:05]}  Ke6 {[%clk 0:00:16]} 45. f4 {[%clk 0:00:05]}  Bd6 {[%clk 0:00:15]} 46. Nf3 {[%clk 0:00:05]}  Rf8 {[%clk 0:00:15]} 47. Ng5+ {[%clk 0:00:04]}  Kd7 {[%clk 0:00:15]} 48. f5 {[%clk 0:00:05]}  gxf5+ {[%clk 0:00:14]} 49. gxf5 {[%clk 0:00:06]}  Re8+ {[%clk 0:00:15]} 50. Kf3 {[%clk 0:00:06]}  Re5 {[%clk 0:00:15]} 51. Kg4 {[%clk 0:00:06]}  Re1 {[%clk 0:00:15]} 52. Ne4 {[%clk 0:00:06]}  Rg1+ {[%clk 0:00:15]} 53. Kh5 {[%clk 0:00:07]}  Kc6 {[%clk 0:00:15]} 54. f6 {[%clk 0:00:06]}  Rf1 {[%clk 0:00:14]} 55. b4 {[%clk 0:00:06]}  Kd5 {[%clk 0:00:13]} 56. bxc5 {[%clk 0:00:06]}  Be5 {[%clk 0:00:13]} 57. Kg6 {[%clk 0:00:05]}  Rg1+ {[%clk 0:00:12]} 58. Kf7 {[%clk 0:00:05]}  b4 {[%clk 0:00:13]} 59. c6 {[%clk 0:00:05]}  b3 {[%clk 0:00:13]} 60. c7 {[%clk 0:00:06]}  Bxc7 {[%clk 0:00:11]} 61. Rxc7 {[%clk 0:00:05]}  b2 {[%clk 0:00:11]} 62. Rb7 {[%clk 0:00:03]}  b1=Q {[%clk 0:00:12]} 63. Rxb1 {[%clk 0:00:03]}  Rxb1 {[%clk 0:00:12]} 64. Kg6 {[%clk 0:00:02]}  Ke5 {[%clk 0:00:12]} 65. f7 {[%clk 0:00:02]}  Rb8 {[%clk 0:00:13]} 66. Kg7 {[%clk 0:00:02]}  Kf4 {[%clk 0:00:13]} 67. f8=Q+ {[%clk 0:00:03]}  Rxf8 {[%clk 0:00:12]} 68. Kxf8 {[%clk 0:00:03]}  Ke3 {[%clk 0:00:13]} 69. Nc5 {[%clk 0:00:04]}  Kd2 {[%clk 0:00:13]} 70. Ke7 {[%clk 0:00:05]}  Kc3 {[%clk 0:00:14]} 71. Kd6 {[%clk 0:00:05]}  Kb4 {[%clk 0:00:14]} 72. Kd5 {[%clk 0:00:06]}  Kc3 {[%clk 0:00:15]} 73. Ke5 {[%clk 0:00:06]}  Kb4 {[%clk 0:00:15]} 74. Kxd4 {[%clk 0:00:07]}  Kb5 {[%clk 0:00:16]} 75. Kd5 {[%clk 0:00:07]}  Kb6 {[%clk 0:00:16]} 76. d4 {[%clk 0:00:08]}  Kc7 {[%clk 0:00:17]} 77. Kc4 {[%clk 0:00:08]}  Kd8 {[%clk 0:00:18]} 78. d5 {[%clk 0:00:09]}  Ke8 {[%clk 0:00:19]} 79. Kd4 {[%clk 0:00:10]}  Kd8 {[%clk 0:00:20]} 80. Ke5 {[%clk 0:00:11]}  Kc8 {[%clk 0:00:21]} 81. d6 {[%clk 0:00:12]}  Kd8 {[%clk 0:00:22]} 82. Kd5 {[%clk 0:00:12]}  Ke8 {[%clk 0:00:23]} 83. Ke6 {[%clk 0:00:13]}  Kd8 {[%clk 0:00:24]} 84. d7 {[%clk 0:00:13]}  Kc7 {[%clk 0:00:24]} 85. Ke7 {[%clk 0:00:13]}  Kb6 {[%clk 0:00:24]} 86. d8=Q+ {[%clk 0:00:13]}  Ka7 {[%clk 0:00:25]} 87. Qc7+ {[%clk 0:00:13]}  Ka8 {[%clk 0:00:25]} 88. Qb7# {[%clk 0:00:14]} 1-0


[Site "https://www.chess.com"]

[Event "Titled Tuesday Blitz August 22 Late 2023"]
[White "Sanhueza, Cristian"]
[Black "Labussiere, Yago"]
[WhiteFideId "116815"]
[BlackFideId "2186969"]
[WhiteElo "2487"]
[BlackElo "2377"]
[Result "1-0"]
[Round "9"]
[TimeControl "180+1"]
[Date "2023.08.22"]
[WhiteClock "0:00:15"]
[BlackClock "0:00:17"]
[Board "82"]

1. e4 {[%clk 0:02:55]}  c5 {[%clk 0:02:58]} 2. Nf3 {[%clk 0:02:55]}  Nc6 {[%clk 0:02:57]} 3. Bb5 {[%clk 0:02:54]}  g6 {[%clk 0:02:57]} 4. O-O {[%clk 0:02:53]}  Bg7 {[%clk 0:02:57]} 5. c3 {[%clk 0:02:53]}  Nf6 {[%clk 0:02:57]} 6. Re1 {[%clk 0:02:54]}  O-O {[%clk 0:02:56]} 7. d4 {[%clk 0:02:54]}  cxd4 {[%clk 0:02:56]} 8. cxd4 {[%clk 0:02:55]}  d5 {[%clk 0:02:56]} 9. e5 {[%clk 0:02:54]}  Ne4 {[%clk 0:02:57]} 10. Bxc6 {[%clk 0:02:50]}  bxc6 {[%clk 0:02:56]} 11. Be3 {[%clk 0:02:51]}  f6 {[%clk 0:02:54]} 12. exf6 {[%clk 0:02:48]}  exf6 {[%clk 0:02:53]} 13. Nc3 {[%clk 0:02:48]}  Nxc3 {[%clk 0:02:41]} 14. bxc3 {[%clk 0:02:49]}  Qa5 {[%clk 0:02:39]} 15. Bd2 {[%clk 0:02:45]}  Qc7 {[%clk 0:02:26]} 16. Qc1 {[%clk 0:02:40]}  Bg4 {[%clk 0:02:24]} 17. Bf4 {[%clk 0:02:34]}  Qd7 {[%clk 0:02:20]} 18. Re3 {[%clk 0:02:16]}  Rfe8 {[%clk 0:02:19]} 19. h3 {[%clk 0:02:08]}  Bf5 {[%clk 0:02:17]} 20. Qd2 {[%clk 0:01:53]}  Rxe3 {[%clk 0:02:14]} 21. Bxe3 {[%clk 0:01:51]}  g5 {[%clk 0:02:14]} 22. Ne1 {[%clk 0:01:46]}  h6 {[%clk 0:02:12]} 23. Nd3 {[%clk 0:01:46]}  Re8 {[%clk 0:02:08]} 24. Nc5 {[%clk 0:01:44]}  Qc8 {[%clk 0:02:09]} 25. a4 {[%clk 0:01:42]}  Bf8 {[%clk 0:02:05]} 26. Nd3 {[%clk 0:01:41]}  Qa6 {[%clk 0:02:03]} 27. Nc5 {[%clk 0:01:35]}  Qc4 {[%clk 0:02:00]} 28. h4 {[%clk 0:01:31]}  Kg7 {[%clk 0:01:44]} 29. hxg5 {[%clk 0:01:29]}  hxg5 {[%clk 0:01:44]} 30. f3 {[%clk 0:01:13]}  Bg6 {[%clk 0:01:33]} 31. Kf2 {[%clk 0:01:13]}  Bd6 {[%clk 0:01:32]} 32. Rh1 {[%clk 0:01:10]}  Bxc5 {[%clk 0:01:15]} 33. dxc5 {[%clk 0:01:11]}  Qd3 {[%clk 0:01:12]} 34. Qc1 {[%clk 0:00:57]}  Rb8 {[%clk 0:01:08]} 35. Bd4 {[%clk 0:00:51]}  Kf7 {[%clk 0:01:04]} 36. Re1 {[%clk 0:00:50]}  Qc2+ {[%clk 0:01:01]} 37. Qxc2 {[%clk 0:00:48]}  Bxc2 {[%clk 0:01:02]} 38. a5 {[%clk 0:00:48]}  Bg6 {[%clk 0:00:54]} 39. Ra1 {[%clk 0:00:41]}  Rb2+ {[%clk 0:00:53]} 40. Kg3 {[%clk 0:00:41]}  Bd3 {[%clk 0:00:53]} 41. Rh1 {[%clk 0:00:38]}  Kg7 {[%clk 0:00:51]} 42. Re1 {[%clk 0:00:38]}  Kf7 {[%clk 0:00:50]} 43. Rh1 {[%clk 0:00:39]}  Ra2 {[%clk 0:00:42]} 44. Rh6 {[%clk 0:00:28]}  Rxa5 {[%clk 0:00:28]} 45. Rxf6+ {[%clk 0:00:27]}  Ke8 {[%clk 0:00:26]} 46. Rxc6 {[%clk 0:00:25]}  Ra2 {[%clk 0:00:26]} 47. Re6+ {[%clk 0:00:18]}  Kd7 {[%clk 0:00:25]} 48. Rd6+ {[%clk 0:00:19]}  Kc8 {[%clk 0:00:24]} 49. c6 {[%clk 0:00:18]}  Bf1 {[%clk 0:00:23]} 50. Bf2 {[%clk 0:00:16]}  Bc4 {[%clk 0:00:20]} 51. Rd7 {[%clk 0:00:15]}  a5 {[%clk 0:00:16]} 52. Bb6 {[%clk 0:00:15]}  Bb5 {[%clk 0:00:17]} 53. Rd8# {[%clk 0:00:15]} 1-0


[Site "https://www.chess.com"]

[Event "Titled Tuesday Blitz August 22 Late 2023"]
[White "Polaczek, Richard"]
[Black "Itkis, Boris"]
[WhiteFideId "200026"]
[BlackFideId "1209167"]
[WhiteElo "2407"]
[BlackElo "2487"]
[Result "0-1"]
[Round "9"]
[TimeControl "180+1"]
[Date "2023.08.22"]
[WhiteClock "0:00:13"]
[BlackClock "0:00:59"]
[Board "83"]

1. d4 {[%clk 0:02:59]}  d5 {[%clk 0:02:59]} 2. c4 {[%clk 0:02:58]}  e6 {[%clk 0:02:59]} 3. Nc3 {[%clk 0:02:57]}  Nf6 {[%clk 0:02:59]} 4. cxd5 {[%clk 0:02:57]}  exd5 {[%clk 0:02:59]} 5. Bg5 {[%clk 0:02:57]}  c6 {[%clk 0:02:58]} 6. Qc2 {[%clk 0:02:56]}  Bd6 {[%clk 0:02:58]} 7. e3 {[%clk 0:02:55]}  O-O {[%clk 0:02:59]} 8. Bd3 {[%clk 0:02:54]}  h6 {[%clk 0:02:59]} 9. Bh4 {[%clk 0:02:53]}  Re8 {[%clk 0:03:00]} 10. Nge2 {[%clk 0:02:51]}  Nbd7 {[%clk 0:03:00]} 11. Rd1 {[%clk 0:02:42]}  Nf8 {[%clk 0:02:57]} 12. Qd2 {[%clk 0:02:36]}  a5 {[%clk 0:02:56]} 13. f3 {[%clk 0:02:35]}  Be7 {[%clk 0:02:53]} 14. Bf2 {[%clk 0:02:33]}  b5 {[%clk 0:02:52]} 15. O-O {[%clk 0:02:32]}  a4 {[%clk 0:02:50]} 16. a3 {[%clk 0:02:23]}  Bd7 {[%clk 0:02:46]} 17. h3 {[%clk 0:02:20]}  Nh5 {[%clk 0:02:43]} 18. e4 {[%clk 0:02:11]}  Bg5 {[%clk 0:02:40]} 19. Be3 {[%clk 0:02:11]}  Ne6 {[%clk 0:02:29]} 20. e5 {[%clk 0:02:03]}  Bxe3+ {[%clk 0:02:11]} 21. Qxe3 {[%clk 0:02:02]}  g5 {[%clk 0:02:11]} 22. g3 {[%clk 0:01:52]}  Rb8 {[%clk 0:02:05]} 23. Bb1 {[%clk 0:01:46]}  b4 {[%clk 0:02:01]} 24. axb4 {[%clk 0:01:45]}  Rxb4 {[%clk 0:02:01]} 25. Qd3 {[%clk 0:01:45]}  Nf8 {[%clk 0:02:01]} 26. g4 {[%clk 0:01:43]}  Nf4 {[%clk 0:01:54]} 27. Nxf4 {[%clk 0:01:41]}  gxf4 {[%clk 0:01:55]} 28. Rf2 {[%clk 0:01:33]}  Qh4 {[%clk 0:01:54]} 29. Ne2 {[%clk 0:01:21]}  Ng6 {[%clk 0:01:52]} 30. Qa3 {[%clk 0:01:11]}  Rb3 {[%clk 0:01:49]} 31. Qd6 {[%clk 0:01:09]}  Be6 {[%clk 0:01:43]} 32. Bxg6 {[%clk 0:01:08]}  fxg6 {[%clk 0:01:43]} 33. Qxc6 {[%clk 0:01:04]}  Re7 {[%clk 0:01:38]} 34. Qd6 {[%clk 0:01:00]}  Rxb2 {[%clk 0:01:32]} 35. Rdf1 {[%clk 0:00:49]}  Kf7 {[%clk 0:01:25]} 36. Nxf4 {[%clk 0:00:41]}  Qg3+ {[%clk 0:01:25]} 37. Ng2 {[%clk 0:00:40]}  Rxf2 {[%clk 0:01:15]} 38. Rxf2 {[%clk 0:00:38]}  Rb7 {[%clk 0:01:15]} 39. Qa6 {[%clk 0:00:18]}  Rb1+ {[%clk 0:01:10]} 40. Rf1 {[%clk 0:00:18]}  Rb2 {[%clk 0:01:05]} 41. Qa7+ {[%clk 0:00:16]}  Kg8 {[%clk 0:01:01]} 42. Qa8+ {[%clk 0:00:16]}  Kg7 {[%clk 0:00:59]} 43. Qa7+ {[%clk 0:00:13]}  Bf7 {[%clk 0:00:59]} 0-1


[Site "https://www.chess.com"]

[Event "Titled Tuesday Blitz August 22 Late 2023"]
[White "Ozalp, Burak"]
[Black "Martinez Reyes, Pedro Ramon"]
[WhiteFideId "6314210"]
[BlackFideId "3901807"]
[WhiteElo "2390"]
[BlackElo "2572"]
[Result "1-0"]
[Round "9"]
[TimeControl "180+1"]
[Date "2023.08.22"]
[WhiteClock "0:00:42"]
[BlackClock "0:00:15"]
[Board "89"]

1. e4 {[%clk 0:03:00]}  d5 {[%clk 0:02:57]} 2. exd5 {[%clk 0:03:00]}  Qxd5 {[%clk 0:02:58]} 3. Nc3 {[%clk 0:03:01]}  Qd8 {[%clk 0:02:58]} 4. d4 {[%clk 0:03:00]}  Nf6 {[%clk 0:02:54]} 5. Nf3 {[%clk 0:03:00]}  g6 {[%clk 0:02:54]} 6. Bc4 {[%clk 0:02:50]}  Bg7 {[%clk 0:02:51]} 7. O-O {[%clk 0:02:36]}  O-O {[%clk 0:02:47]} 8. h3 {[%clk 0:02:35]}  Nc6 {[%clk 0:02:42]} 9. Bf4 {[%clk 0:02:31]}  b6 {[%clk 0:02:24]} 10. d5 {[%clk 0:02:16]}  Na5 {[%clk 0:02:22]} 11. Be2 {[%clk 0:02:13]}  c6 {[%clk 0:02:08]} 12. b4 {[%clk 0:02:01]}  Nxd5 {[%clk 0:01:23]} 13. Nxd5 {[%clk 0:02:00]}  cxd5 {[%clk 0:01:24]} 14. bxa5 {[%clk 0:02:00]}  Bxa1 {[%clk 0:01:12]} 15. Qxa1 {[%clk 0:02:01]}  f6 {[%clk 0:01:12]} 16. Bh6 {[%clk 0:01:58]}  Rf7 {[%clk 0:01:07]} 17. c4 {[%clk 0:01:58]}  Bb7 {[%clk 0:00:59]} 18. Rd1 {[%clk 0:01:54]}  e6 {[%clk 0:00:56]} 19. cxd5 {[%clk 0:01:37]}  Bxd5 {[%clk 0:00:56]} 20. a6 {[%clk 0:01:37]}  Rc8 {[%clk 0:00:42]} 21. Be3 {[%clk 0:01:22]}  Rfc7 {[%clk 0:00:39]} 22. Nd4 {[%clk 0:01:17]}  Kf7 {[%clk 0:00:39]} 23. Nb5 {[%clk 0:01:16]}  Rd7 {[%clk 0:00:38]} 24. Rc1 {[%clk 0:01:11]}  Bc6 {[%clk 0:00:34]} 25. a4 {[%clk 0:01:05]}  Bd5 {[%clk 0:00:32]} 26. h4 {[%clk 0:01:01]}  h5 {[%clk 0:00:31]} 27. Qa3 {[%clk 0:00:55]}  Rxc1+ {[%clk 0:00:30]} 28. Qxc1 {[%clk 0:00:54]}  Qa8 {[%clk 0:00:29]} 29. f3 {[%clk 0:00:49]}  Qd8 {[%clk 0:00:25]} 30. Bf2 {[%clk 0:00:47]}  Bb3 {[%clk 0:00:24]} 31. Qh6 {[%clk 0:00:47]}  Qg8 {[%clk 0:00:19]} 32. Bg3 {[%clk 0:00:43]}  Bxa4 {[%clk 0:00:18]} 33. Nd6+ {[%clk 0:00:43]}  Rxd6 {[%clk 0:00:17]} 34. Bxd6 {[%clk 0:00:42]}  e5 {[%clk 0:00:15]} 35. Bc4+ {[%clk 0:00:42]} 1-0


[Site "https://www.chess.com"]

[Event "Titled Tuesday Blitz August 22 Late 2023"]
[White "Grebeniuk, Semen"]
[Black "Arnold, Ken"]
[WhiteFideId "14117509"]
[BlackFideId "2056836"]
[WhiteElo "2558"]
[BlackElo "2411"]
[Result "1-0"]
[Round "9"]
[TimeControl "180+1"]
[Date "2023.08.22"]
[WhiteClock "0:00:31"]
[BlackClock "0:00:06"]
[Board "90"]

1. d4 {[%clk 0:03:00]}  c6 {[%clk 0:02:59]} 2. c4 {[%clk 0:03:00]}  d5 {[%clk 0:02:59]} 3. cxd5 {[%clk 0:03:01]}  cxd5 {[%clk 0:02:59]} 4. Bf4 {[%clk 0:03:02]}  Nc6 {[%clk 0:02:58]} 5. e3 {[%clk 0:03:02]}  Nf6 {[%clk 0:02:58]} 6. Bd3 {[%clk 0:03:02]}  e6 {[%clk 0:02:50]} 7. Nf3 {[%clk 0:03:02]}  Bd6 {[%clk 0:02:50]} 8. Bxd6 {[%clk 0:02:49]}  Qxd6 {[%clk 0:02:50]} 9. O-O {[%clk 0:02:50]}  O-O {[%clk 0:02:49]} 10. Nc3 {[%clk 0:02:50]}  Bd7 {[%clk 0:02:43]} 11. Nb1 {[%clk 0:02:43]}  Rac8 {[%clk 0:02:41]} 12. a3 {[%clk 0:02:40]}  a6 {[%clk 0:02:40]} 13. Nc3 {[%clk 0:02:38]}  Rfd8 {[%clk 0:02:37]} 14. Rc1 {[%clk 0:02:36]}  h6 {[%clk 0:02:36]} 15. Na4 {[%clk 0:02:33]}  e5 {[%clk 0:02:35]} 16. Nc5 {[%clk 0:02:19]}  e4 {[%clk 0:02:22]} 17. Nxb7 {[%clk 0:02:18]}  Qb8 {[%clk 0:02:00]} 18. Nxd8 {[%clk 0:02:15]}  Rxd8 {[%clk 0:01:59]} 19. b4 {[%clk 0:02:06]}  exd3 {[%clk 0:01:57]} 20. Qxd3 {[%clk 0:02:07]}  Ne4 {[%clk 0:01:52]} 21. Qxa6 {[%clk 0:01:58]}  Qa8 {[%clk 0:01:45]} 22. Qd3 {[%clk 0:01:55]}  Bf5 {[%clk 0:01:39]} 23. Qb3 {[%clk 0:01:47]}  g5 {[%clk 0:01:25]} 24. Rfd1 {[%clk 0:01:42]}  Bg6 {[%clk 0:01:12]} 25. Ne5 {[%clk 0:01:34]}  Nxe5 {[%clk 0:01:09]} 26. dxe5 {[%clk 0:01:35]}  g4 {[%clk 0:00:53]} 27. b5 {[%clk 0:01:30]}  h5 {[%clk 0:00:47]} 28. b6 {[%clk 0:01:28]}  Qb8 {[%clk 0:00:36]} 29. Rc7 {[%clk 0:01:13]}  Bf5 {[%clk 0:00:25]} 30. a4 {[%clk 0:01:10]}  Be6 {[%clk 0:00:22]} 31. Qb4 {[%clk 0:01:03]}  h4 {[%clk 0:00:20]} 32. a5 {[%clk 0:01:01]}  g3 {[%clk 0:00:20]} 33. hxg3 {[%clk 0:01:00]}  hxg3 {[%clk 0:00:20]} 34. fxg3 {[%clk 0:01:00]}  Rc8 {[%clk 0:00:19]} 35. Rdc1 {[%clk 0:00:58]}  Re8 {[%clk 0:00:18]} 36. a6 {[%clk 0:00:56]}  Qd8 {[%clk 0:00:17]} 37. b7 {[%clk 0:00:48]}  Qg5 {[%clk 0:00:16]} 38. Qe1 {[%clk 0:00:46]}  Nxg3 {[%clk 0:00:13]} 39. Rc8 {[%clk 0:00:41]}  Bxc8 {[%clk 0:00:12]} 40. Rxc8 {[%clk 0:00:35]}  Qxe5 {[%clk 0:00:11]} 41. Rxe8+ {[%clk 0:00:31]}  Qxe8 {[%clk 0:00:06]} 42. Qxg3+ {[%clk 0:00:31]} 1-0


[Site "https://www.chess.com"]

[Event "Titled Tuesday Blitz August 22 Late 2023"]
[White "Figorito, Nick"]
[Black "Graif, William"]
[WhiteFideId "30923689"]
[BlackFideId "2609835"]
[WhiteElo "2353"]
[BlackElo "2505"]
[Result "0-1"]
[Round "9"]
[TimeControl "180+1"]
[Date "2023.08.22"]
[WhiteClock "0:00:01"]
[BlackClock "0:00:22"]
[Board "92"]

1. Nf3 {[%clk 0:03:00]}  d5 {[%clk 0:02:56]} 2. g3 {[%clk 0:03:00]}  Nc6 {[%clk 0:02:52]} 3. d4 {[%clk 0:03:00]}  Bg4 {[%clk 0:02:51]} 4. Bg2 {[%clk 0:03:01]}  Qd7 {[%clk 0:02:51]} 5. Ne5 {[%clk 0:03:00]}  Nxe5 {[%clk 0:02:46]} 6. dxe5 {[%clk 0:03:01]}  O-O-O {[%clk 0:02:39]} 7. Qd4 {[%clk 0:02:47]}  Kb8 {[%clk 0:02:29]} 8. Nc3 {[%clk 0:02:46]}  Bh3 {[%clk 0:02:13]} 9. Be3 {[%clk 0:02:11]}  b6 {[%clk 0:01:47]} 10. Qxd5 {[%clk 0:02:03]}  Bxg2 {[%clk 0:01:41]} 11. Qxg2 {[%clk 0:02:00]}  e6 {[%clk 0:01:35]} 12. Rd1 {[%clk 0:01:57]}  Qe8 {[%clk 0:01:32]} 13. Rxd8+ {[%clk 0:01:51]}  Qxd8 {[%clk 0:01:33]} 14. O-O {[%clk 0:01:46]}  Ne7 {[%clk 0:01:23]} 15. Rd1 {[%clk 0:01:44]}  Qe8 {[%clk 0:01:23]} 16. a4 {[%clk 0:01:34]}  Ng6 {[%clk 0:01:19]} 17. Qe4 {[%clk 0:01:28]}  a5 {[%clk 0:01:05]} 18. Nb5 {[%clk 0:01:25]}  Be7 {[%clk 0:01:02]} 19. Qc4 {[%clk 0:01:06]}  Qc8 {[%clk 0:00:58]} 20. f4 {[%clk 0:01:01]}  Rd8 {[%clk 0:00:58]} 21. Nd4 {[%clk 0:00:57]}  c5 {[%clk 0:00:52]} 22. Qb5 {[%clk 0:00:51]}  Kb7 {[%clk 0:00:45]} 23. c3 {[%clk 0:00:22]}  cxd4 {[%clk 0:00:44]} 24. cxd4 {[%clk 0:00:23]}  Qc6 {[%clk 0:00:42]} 25. Qd3 {[%clk 0:00:22]}  Bb4 {[%clk 0:00:37]} 26. b3 {[%clk 0:00:20]}  Nf8 {[%clk 0:00:31]} 27. Rc1 {[%clk 0:00:21]}  Qd5 {[%clk 0:00:30]} 28. Rc4 {[%clk 0:00:14]}  f5 {[%clk 0:00:25]} 29. exf6 {[%clk 0:00:13]}  gxf6 {[%clk 0:00:25]} 30. Bf2 {[%clk 0:00:12]}  f5 {[%clk 0:00:25]} 31. h3 {[%clk 0:00:10]}  Nd7 {[%clk 0:00:24]} 32. Kh2 {[%clk 0:00:08]}  Nf6 {[%clk 0:00:24]} 33. Qe3 {[%clk 0:00:04]}  Ne4 {[%clk 0:00:23]} 34. Bg1 {[%clk 0:00:03]}  Nd2 {[%clk 0:00:23]} 35. Rc2 {[%clk 0:00:01]}  Nf1# {[%clk 0:00:22]} 0-1


[Site "https://www.chess.com"]

[Event "Titled Tuesday Blitz August 22 Late 2023"]
[White "Reprintsev, Alexander"]
[Black "Fajdetic, Hrvoje"]
[WhiteFideId "14100541"]
[BlackFideId "14501945"]
[WhiteElo "2488"]
[BlackElo "2279"]
[Result "0-1"]
[Round "9"]
[TimeControl "180+1"]
[Date "2023.08.22"]
[WhiteClock "0:01:33"]
[BlackClock "0:01:38"]
[Board "93"]

1. e4 {[%clk 0:02:58]}  c5 {[%clk 0:02:59]} 2. b3 {[%clk 0:02:57]}  d5 {[%clk 0:02:54]} 3. exd5 {[%clk 0:02:56]}  Qxd5 {[%clk 0:02:55]} 4. Nc3 {[%clk 0:02:56]}  Qd6 {[%clk 0:02:53]} 5. Ba3 {[%clk 0:02:30]}  Nf6 {[%clk 0:02:45]} 6. Qf3 {[%clk 0:02:22]}  Nc6 {[%clk 0:02:31]} 7. Nb5 {[%clk 0:02:17]}  Qe5+ {[%clk 0:02:29]} 8. Be2 {[%clk 0:02:09]}  Qxa1+ {[%clk 0:02:23]} 9. Bd1 {[%clk 0:02:09]}  Bg4 {[%clk 0:02:12]} 10. Nc7+ {[%clk 0:01:51]}  Kd7 {[%clk 0:02:07]} 11. Qd3+ {[%clk 0:01:49]}  Kxc7 {[%clk 0:02:07]} 12. f3 {[%clk 0:01:49]}  Bh5 {[%clk 0:01:49]} 13. c3 {[%clk 0:01:48]}  Bg6 {[%clk 0:01:42]} 14. Qc4 {[%clk 0:01:33]}  Bc2 {[%clk 0:01:38]} 0-1


[Site "https://www.chess.com"]

[Event "Titled Tuesday Blitz August 22 Late 2023"]
[White "Sernecki, Franciszek"]
[Black "Garcia Blanco, Omar"]
[WhiteFideId "1169297"]
[BlackFideId "2287153"]
[WhiteElo "2439"]
[BlackElo "2579"]
[Result "0-1"]
[Round "9"]
[TimeControl "180+1"]
[Date "2023.08.22"]
[WhiteClock "0:01:57"]
[BlackClock "0:02:11"]
[Board "95"]

1. e4 {[%clk 0:03:00]}  c5 {[%clk 0:02:59]} 2. Ne2 {[%clk 0:03:01]}  Nc6 {[%clk 0:02:58]} 3. Nbc3 {[%clk 0:03:01]}  e6 {[%clk 0:02:58]} 4. g3 {[%clk 0:03:02]}  Qc7 {[%clk 0:02:58]} 5. Bg2 {[%clk 0:03:02]}  a6 {[%clk 0:02:58]} 6. d3 {[%clk 0:02:58]}  Nf6 {[%clk 0:02:53]} 7. O-O {[%clk 0:02:58]}  h5 {[%clk 0:02:52]} 8. Bf4 {[%clk 0:02:50]}  Ne5 {[%clk 0:02:51]} 9. Bxe5 {[%clk 0:02:47]}  Qxe5 {[%clk 0:02:50]} 10. f4 {[%clk 0:02:47]}  Qc7 {[%clk 0:02:50]} 11. e5 {[%clk 0:02:47]}  Ng4 {[%clk 0:02:50]} 12. Qd2 {[%clk 0:02:44]}  d6 {[%clk 0:02:41]} 13. h3 {[%clk 0:02:38]}  Nh6 {[%clk 0:02:36]} 14. exd6 {[%clk 0:02:37]}  Bxd6 {[%clk 0:02:36]} 15. Ne4 {[%clk 0:02:37]}  Be7 {[%clk 0:02:36]} 16. N2c3 {[%clk 0:02:33]}  Bd7 {[%clk 0:02:26]} 17. Rae1 {[%clk 0:02:33]}  O-O-O {[%clk 0:02:22]} 18. a4 {[%clk 0:02:26]}  Bc6 {[%clk 0:02:22]} 19. Ng5 {[%clk 0:02:10]}  Bf6 {[%clk 0:02:16]} 20. Bxc6 {[%clk 0:02:09]}  Qxc6 {[%clk 0:02:17]} 21. Nge4 {[%clk 0:02:09]}  Bd4+ {[%clk 0:02:17]} 22. Kh2 {[%clk 0:02:07]}  f5 {[%clk 0:02:11]} 23. Ng5 {[%clk 0:02:07]}  Ng4+ {[%clk 0:02:11]} 24. hxg4 {[%clk 0:01:56]}  hxg4+ {[%clk 0:02:12]} 25. Nh3 {[%clk 0:01:57]}  Rxh3# {[%clk 0:02:11]} 0-1


[Site "https://www.chess.com"]